Cogmind - Beta 16 @@@ ROGUE MODE // 2025.11.16 @ 09:41:21 Player: Uranium-235 Result: Destroyed by G-47 Trooper with Particle Gun Performance ------------- Evolutions (0) 0 Regions Visited (1) 200 Robots Destroyed (16) 80 Value Destroyed (389) 389 Prototype IDs (2) 40 Alien Tech Used (0) 0 Bonus (0) 0 TOTAL SCORE: 709 Bonus ------- None Cogmind --------- Core Integrity 0/250 Matter 291/300 Energy 80/100 System Corruption 0% Temperature Warm (171) Movement Walking (190) Ox1 Location -10/Materials Parts ------- > --- POWER (1) -------- (None) > --- PROPULSION (2) --- Aluminum Leg > --- UTILITY (2) ------ Improved Heat Sink Medium Storage Unit > --- WEAPON (2) ------- (None) > --- INVENTORY (10) --- Aluminum Leg Aluminum Leg Improved Terrain Scanner Seismic Detector Light Armor Plating Light Assault Rifle Grenade Launcher Mining Laser Peak State ------------ > --- POWER ------------ Ion Engine > --- PROPULSION ------- Light Treads Light Treads > --- UTILITY ---------- Improved Heat Sink Small Storage Unit > --- WEAPON ----------- Light Assault Rifle Light Assault Rifle > --- INVENTORY -------- Ion Engine Aluminum Leg Aluminum Leg Improved Terrain Scanner Seismic Detector Beam Cannon Light Assault Rifle Mining Laser [Rating: 10] Favorites ----------- Power Ion Engine Engine Ion Engine Propulsion Light Treads Treads Light Treads Leg Aluminum Leg Utility Small Storage Unit Device Seismic Detector Storage Small Storage Unit Weapon Light Assault Rifle Energy Cannon Beam Cannon Ballistic Gun Light Assault Rifle Build | -11 -10 ------- Run | Yrd Mat Slots Evolved . | . . Power . | . . Propulsion . | . . Utility . | . . Weapon . | . . Parts Attached 13 | 7 6 Power 2 | 1 1 Engine 2 | 1 1 Core . | . . Reactor . | . . Propulsion 4 | 2 2 Treads 2 | 2 . Leg 2 | . 2 Wheel . | . . Hover . | . . Flight . | . . Utility 4 | 2 2 Device 2 | 1 1 Storage 2 | 1 1 Processor . | . . Hackware . | . . Protection . | . . Artifact . | . . Weapon 3 | 2 1 Energy Gun . | . . Energy Cannon 1 | . 1 Ballistic Gun 2 | 2 . Ballistic Cannon . | . . Launcher . | . . Special Weapon . | . . Impact Weapon . | . . Slashing Weapon . | . . Piercing Weapon . | . . Special Melee Weapon . | . . Unidentified Prototypes . | . . Parts Lost 4 | . 4 Power 1 | . 1 Propulsion 1 | . 1 Utility . | . . Weapon 2 | . 2 Highest Loss Streak 4 | . 4 To Critical Strikes . | . . Average Backups 7 | 5 7 Power . | 1 . Propulsion 2 | 3 2 Utility 1 | . 1 Weapon 2 | . 2 Tool/Special . | . . Unused Backups 11 | . 11 Power 1 | . 1 Propulsion 5 | . 5 Utility 2 | . 2 Weapon 3 | . 3 Tool/Special . | . . Average Slot Usage (%) 98 | . 98 Engine 13 | . 13 Treads 15 | . 15 Leg 11 | . 11 Device 14 | . 14 Storage 14 | . 14 Energy Cannon 7 | . 7 Ballistic Gun 20 | . 20 Peak Build Rating 10 | 8 10 Average Rating 7 | 5 8 On Entrance 4 | . 8 Avg Prop Armor Cover (%) . | . . Naked Turns . | . . Heaviest Build 20 | 13 20 Greatest Support 40 | 40 40 Greatest Overweight (x) 1 | . 1 Average Overweight (x) . | . . Largest Inventory Capacity 10 | 8 10 Average Capacity 7 | 7 8 Most Carried 8 | 8 8 Average Carried 7 | 5 7 Final Capacity 10 | 8 10 Final Carried 8 | 8 8 Class Distribution -------------------- 100% | Mutant Dominant Class ---------------- Mutant | -10/Materials Resources | -11 -10 ----------- Run | Yrd Mat Matter Collected 409 | 293 116 Remotely . | . . Salvage Created 698 | 144 554 Parts 36 | 9 27 Haulers Intercepted 1 | . 1 Recyclers Shooed 2 | 2 . Parts Field Recycled . | . . Retrieved Matter . | . . Parts Self-Destructed . | . . Prevented . | . . Parts Restored . | . . Kills | -11 -10 ------- Run | Yrd Mat Combat Hostiles Destroyed 10 | . 10 Guns 6 | . 6 Cannons 4 | . 4 Classes Destroyed 5 | 3 2 Worker 2 | 2 . Tunneler 1 | 1 . Hauler 1 | . 1 Recycler 2 | 1 1 Grunt 10 | . 10 Best Kill Streak 4 | 3 4 Combat Bots Only 4 | . 4 Max Kills in Single Turn 1 | 1 1 Gunslinging . | . . Exploded . | . . Melee . | . . Uniques/NPCs Destroyed . | . . Combat | -11 -10 -------- Run | Yrd Mat Hostile Shots Fired 96 | . 96 Missed 15 | . 15 Hits 81 | . 81 Projectile 81 | . 81 Critical Strikes 2 | . 2 Damage Taken 1028 | . 1028 Core 253 | . 253 Absorbed by Shields . | . . Core Remaining (%) 100 | 100 . Volleys Fired 64 | 12 52 Largest 2 | 2 2 Hottest 80 | 40 80 Shots Fired 122 | 24 98 Gun 88 | 24 64 Cannon 34 | . 34 Launcher . | . . Special . | . . Kinetic 88 | 24 64 Thermal 34 | . 34 Explosive . | . . Electromagnetic . | . . Robot Hit Streak 22 | 5 22 Robot Miss Streak 3 | 2 3 Penetration Max . | . . Secondary Targets . | . . Shots Hit Robots 81 | 15 66 Core Hits 36 | 8 28 Critical Kills . | . . Critical Parts Destroyed . | . . Critical Strikes . | . . Melee Attacks . | . . Impact . | . . Slashing . | . . Piercing . | . . Sneak Attacks . | . . Combat Hostiles . | . . Follow-up Attacks . | . . Damage Inflicted 902 | 143 759 Guns 534 | 143 391 Cannons 368 | . 368 Explosions . | . . Melee . | . . Ramming . | . . Kinetic 534 | 143 391 Thermal 368 | . 368 Explosive . | . . Electromagnetic . | . . Impact . | . . Slashing . | . . Piercing . | . . Highest Corruption . | . . Average Corruption . | . . Corruption Purged . | . . Corruption Blocked . | . . Overload Shots . | . . Overflow Damage . | . . Projectiles . | . . Explosions . | . . Melee . | . . Knockbacks . | . . Impact . | . . Kinetic . | . . Secondary . | . . Self-Inflicted Damage . | . . Shots . | . . Rammed . | . . Targets Rammed . | . . Kicked . | . . Crushed . | . . Highest Temperature 315 | . 315 Average Temperature 74 | . 74 Received Heat Transfer 603 | . 603 Siege Activations . | . . Martial Activations . | . . Shielding Activations . | . . Robots Disrupted . | . . Combat Hostiles . | . . Robots Corrupted . | . . Combat Hostiles . | . . Parts Fried . | . . Impact Corruptions . | . . Robots Melted . | . . Combat Hostiles . | . . Parts Melted . | . . Heat Transferred 777 | . 777 Parts Sabotaged . | . . Parts Stolen . | . . Parts Stripped . | . . Power Chain Reactions . | . . Alert | -11 -10 ------- Run | Yrd Mat Maximum Alert Level . | . . Low Security (%) 100 | 100 100 Level 1 . | . . Level 2 . | . . Level 3 . | . . Level 4 . | . . Level 5 . | . . High Security . | . . Max Security . | . . Peak Influence 120 | 10 120 Initial 3 | . 3 Average 34 | 1 43 Influence Increases 273 | 20 253 Destroy 0b10 Robot/C 200 | . 200 Destroy 0b10 Robot/NC 30 | 20 10 Destroy Leader 32 | . 32 Successful Hack 11 | . 11 Influence Decreases 263 | 15 248 Entered New Map 2 | . 2 Time Decay 221 | 15 206 Lost Part 40 | . 40 Squads Dispatched 2 | . 2 Investigation 1 | . 1 Extermination . | . . Reinforcement 1 | . 1 Assault . | . . Garrison . | . . Intercept . | . . Searches Triggered . | . . Construction Impeded . | . . Haulers Reinforced . | . . Active Scanning Responses . | . . Cargo Convoy Interrupts . | . . Stealth | -11 -10 --------- Run | Yrd Mat Distress Signals 1 | . 1 Communications Jammed . | . . Distress Signals . | . . Times Spotted 16 | . 16 Peak Tracking Total 6 | . 6 Tactical Retreats . | . . Traps | -11 -10 ------- Run | Yrd Mat Traps Triggered 1 | . 1 Indirectly . | . . Trap Hack Attempts . | . . Triggered . | . . Disarmed . | . . Reprogrammed . | . . Reused . | . . Traps Extracted . | . . Installed . | . . Triggered . | . . Machines | -11 -10 ---------- Run | Yrd Mat Machines Disabled . | . . Max in Single Turn . | . . Machines Repaired . | . . Machines Dismantled . | . . Machines Sabotaged . | . . Overloaded Fab Kills . | . . Hacking | -11 -10 --------- Run | Yrd Mat Machines Accessed 4 | . 4 Terminals 4 | . 4 Fabricators . | . . Repair Stations . | . . Recycling Units . | . . Scanalyzers . | . . Garrison Access . | . . Total Hacks 10 | . 10 Successful 6 | . 6 Failed 4 | . 4 Catastrophic . | . . Database Lockouts . | . . Manual 8 | . 8 Terminals 10 | . 10 Fabricators . | . . Repair Stations . | . . Recycling Units . | . . Scanalyzers . | . . Garrison Access . | . . Terminal Hacks 3 | . 3 Prototype ID Bank 1 | . 1 Branch Access Points 1 | . 1 Terminal Index 1 | . 1 Fabricator Hacks . | . . Repair Station Hacks . | . . Recycling Unit Hacks . | . . Scanalyzer . | . . Garrison Access Hacks . | . . Unauthorized Hacks 3 | . 3 Terminals 3 | . 3 Botnet 3 | . 3 Fabricators . | . . Repair Stations . | . . Recycling Units . | . . Scanalyzers . | . . Garrison Access . | . . Data Cores Recovered . | . . Used . | . . Hacking Detections 4 | . 4 Full Trace Events . | . . Feedback Events . | . . Feedback Blocked . | . . Robot Schematics Acquired . | . . Robots Built . | . . Authchips . | . . Time . | . . Total Robot Build Rating . | . . Part Schematics Acquired . | . . Parts Built . | . . Authchips . | . . Time . | . . Total Part Build Rating . | . . Part Studies Acquired . | . . Parts Repaired . | . . Time . | . . Parts Recycled . | . . Recycled Matter . | . . Retrieved Matter . | . . Retrieved Components . | . . Parts Scanalyzed . | . . Part Schematics Acquired . | . . Parts Damaged . | . . Bothacking | -11 -10 ------------ Run | Yrd Mat Used RIF Installer . | . . Robots Hacked . | . . Non-combat . | . . Combat . | . . Robot Hacks Applied . | . . Relay Couplers Released . | . . Fabnet Peak Effective % . | . . Robots Rewired . | . . Allies Hacked . | . . Hacks Repelled . | . . Allies | -11 -10 -------- Run | Yrd Mat Total Allies . | . . Largest Group . | . . Highest-Rated Group . | . . Highest-Rated Ally . | . . Total Orders . | . . Ally Attacks . | . . Total Damage . | . . Kills . | . . Allies Corrupted . | . . Allies Melted . | . . Intel | -11 -10 ------- Run | Yrd Mat Active Infowar (turns) 451 | 46 405 Seismic 451 | 46 405 Robot Analysis Total . | . . Derelict Logs Recovered . | . . Drone Launches . | . . Drone Recoveries . | . . Exploration | -11 -10 ------------- Run | Yrd Mat Turns Passed 674 | 135 539 Spaces Moved 295 | 58 237 Core 8 | 8 . Treads 142 | 50 92 Legs 145 | . 145 Wheels . | . . Hover . | . . Flight . | . . Fastest Speed 50 | 50 120 Average Speed 137 | 144 135 Slowest Speed 190 | 160 190 Overloaded Moves . | . . Propulsion Burnouts . | . . Robots Hopped . | . . Potential Cave-ins . | . . Cave-ins Triggered . | . . Exploration Rate (%) 26 | 4 49 Regions Visited 1 Branch Regions . Pre-discovered Areas . | . . Known Exits Taken . | . . Unknown Exits Taken 1 | 1 . Scrap Searched . | . . Spaces Dug . | . . Terrain Destroyed . | . . Melee . | . . Projectile . | . . AOE . | . . Terrain Rammed . | . . Walls Destroyed . | . . Machines Disabled . | . . Actions | -11 -10 --------- Run | Yrd Mat Total 460 | 87 373 Wait 60 | 1 59 Move 294 | 57 237 Hop . | . . Pick Up 18 | 10 8 Fast Attach 5 | 5 . Attach 4 | 2 2 Detach . | . . Swap 6 | . 6 Drop 9 | . 9 Fire 64 | 12 52 Melee . | . . Ram . | . . Kick . | . . Crush . | . . Escape Stasis . | . . Rewire . | . . Trap . | . . Miscellaneous . | . . Route ------- -11/Scrapyard -10/Materials (discovered 2 exits: [*Mat] / *Min) History --------- Turn | Location | Event 46 | -11/Scrapyard | Discovered new exit (range 14) 136 | -11/Scrapyard | Entered Materials 160 | -10/Materials | Identified exit to Mines 300 | -10/Materials | Build established: Mutant 427 | -10/Materials | Core integrity fell below 50% 528 | -10/Materials | Discovered new exit (range 16) 657 | -10/Materials | Core integrity fell below 20% 675 | -10/Materials | Destroyed by G-47 Trooper with Particle Gun Last Messages --------------- Unit. 00639_ R-06 Scavenger collects Sml. Matter Pod. 00642_ K-01 Serf cleans the Nuclear Reactor. 00647_ Critical hit (Burn: +37). 00648_ K-01 Serf cleans the Nuclear Reactor. 00649_ R-06 Scavenger destroyed. 00651_ K-01 Serf collects debris. 00654_ K-01 Serf cleans the Nuclear Reactor. 00654_ Critical hit (Burn: +37). 00656_ K-01 Serf collects debris. 00659_ G-34 Mercenary destroyed. 00659_ K-01 Serf collects debris. 00660_ Lgt. Assault Rifle destroyed. 00661_ K-01 Serf cleans the Nuclear Reactor. 00662_ M-13 Machinist repairs G-34 Mercenary. 00662_ Aluminum Leg destroyed. 00663_ K-01 Serf collects debris. 00666_ Ion Engine destroyed. 00666_ K-01 Serf collects debris. 00675_ Beam Cannon destroyed. Map ----- +----------------------------------------------------+ | #######?# # #?????????????????????????????? | | # #?# # #?????????????????????????????? | | # ### + +?????????????????????????????? | | # + # #?????????????????????????????? | | # ########## #?????????????????????????????? | | # #????????# #?????????????????????????????? | | ### ###????????# #?????????????????????????????? | | ### #??????????# #?????????????????????????????? | | #####??????# #?????????????????????????????? | | +??????+ #?????????????????????????????? | | %########??????# #?????????????????????????????? | | +#####?????????# #?????????????????????????????? | | #?????????# #?????????????????????????????? | | #?????????? #####+##?????????????????????? | | #????????# ?????????????????????? | | #????????# ?????????????????????? | | #????????# o""" ?????????????????????? | | #????????# "T" #?????????????????????? | | #????????# k #?????????????????????? | | / #????????# !! T?????????????????????? | | #????????# u w!! #?????????????????????? | | ######????????# ! #?????????????????????? | | ??????????????# #?????????????????????? | | ??????????????# #?????????????????????? | | ??????????????# !!#?????????????????????? | | ??????????????# @ #?????????????????????? | | ############### !!=#?????????????????????? | | w k !%=#?????????????????????? | | !! #?????????????????????? | | "T" g [gk#?????????????????????? | | ########### m= #?????????????????????? | | #?#######?# """ #?????????????????????? | | # !#?# """ ########## ###????????? | | # #?# """ ???????? | | + """ #?# *=!! ???????? | | # """ #?# ! ! ???????? | | ## # """ #?# ################## ##?????????? | | ?# #?#######?# #?????????????????????????????? | | ?# #?????????# #?????????????????????????????? | | ?# #?????????# #?????????????????????????????? | | ?# #?????????# #?????????????????????????????? | | ?# #?????????# #?????????????????????????????? | | ?# #?????????# #?????????????????????????????? | | ?# #?????????# #?????????????????????????????? | | ?# #?????????# #?????????????????????????????? | | ## #?????????# ??????????????????????????????? | | # #?????????# ??????????????????????????????? | | # #?????????# ??????????????????????????????? | | # #???????????????????????????????????????????? | | + #???????????????????????????????????????????? | +----------------------------------------------------+ Best States ------------- Heat Dissipation 39 Energy Generation 10 Energy Capacity 250 Matter Stores 300 Matter Capacity 300 Sight Range 16 Terrain Scan Density 10 Evasion (%) 55 Recoil Reduction 2 Item Schematics ----------------- None Robot Schematics ------------------ None Fabricated ------------ Nothing Repaired ---------- Nothing Studied --------- None Alien Tech Used ----------------- None Achievements -------------- None Challenges ------------ None Game ------ Seed AssaultDamperMicroactuators Manual? 0 Play Time 00:06:17 Cumulative 81.2 hours Start 2025.11.16 @ 09:35:17 End 2025.11.16 @ 09:41:21 Sessions 1 Manual Loads 0 Difficulty Rogue Special Mode None Game No. 80 Rogue 80 Adventurer 0 Explorer 0 Win Type - Total 0 Types 0/0/0/0/0/0/0/0/0/0 Lore% 32 Gallery% 45 Achievement% 34 Wizard Run 0 Options --------- Layout 1 ASCII 0 Keyboard 1 Movement Numpad Keybinds 0 Fullscreen 1 Font 24/Smallcaps Map View 50x35 Zoom Use 0% Tactical HUD 1 Map Filters NONE Filters NONE Steam 1 RUN: 83d81970-c908-4772-b39c-1d766eb6d93f